Cogmind - Beta 12 @@@ ROGUE MODE // 2023.07.13 @ 20:45:56 Player: Senator Honkstrong Result: Destroyed by P-60 Hacker with Shock Rifle Performance ------------- Evolutions (0) 0 Regions Visited (3) 600 Robots Destroyed (39) 195 Value Destroyed (810) 810 Prototype IDs (39) 780 Alien Tech Used (0) 0 Bonus (300) 300 TOTAL SCORE: 2685 Bonus ------- Aligned with FarCom 300 Cogmind --------- Core Integrity 0/250 Matter 207/300 Energy 240/240 System Corruption 10% Temperature Cool (4) Movement Core (500) Ox9 Location -10/Exiles Parts ------- > --- POWER (1) -------- Nuclear Core > --- PROPULSION (2) --- (None) > --- UTILITY (2) ------ Large Storage Unit Supersonic Drone Bay (1/1) > --- WEAPON (2) ------- Light Assault Rifle > --- INVENTORY (15) --- Flying Fortress v7 High-capacity Storage Unit Improved Light Armor Plating Latent Energy Streamer Beam Cannon Light Assault Rifle Light Assault Rifle Datajack Blade Trap Blade Trap Blade Trap Peak State ------------ > --- POWER ------------ Nuclear Core > --- PROPULSION ------- Light Treads Light Treads > --- UTILITY ---------- Large Storage Unit Improved Light Armor Plating > --- WEAPON ----------- Latent Energy Streamer Light Assault Rifle > --- INVENTORY -------- Flying Fortress v7 High-capacity Storage Unit Supersonic Drone Bay Beam Cannon Light Assault Rifle Light Assault Rifle Light Assault Rifle Shock Bomb Launcher Datajack Blade Trap Blade Trap Blade Trap [Rating: 25] Favorites ----------- Power Ion Engine Engine Ion Engine Power Core Nuclear Core Propulsion Light Treads Treads Light Treads Leg Aluminum Leg Utility Large Storage Unit Device Improved Terrain Scanner Storage Large Storage Unit Hackware Hacking Suite Protection Improved Light Armor Plating Weapon Light Assault Rifle Energy Gun Small Laser Energy Cannon Beam Cannon Ballistic Gun Light Assault Rifle Launcher Shock Bomb Launcher Special Melee Weapon Datajack Build | -11 -10 -10 -10 ------- Run | Jun Mat Min Exi Slots Evolved . | . . . . Power . | . . . . Propulsion . | . . . . Utility . | . . . . Weapon . | . . . . Parts Attached 24 | 7 5 4 8 Power 3 | 1 1 1 . Engine 2 | 1 1 . . Core 1 | . . 1 . Reactor . | . . . . Propulsion 4 | 2 2 . . Treads 3 | 2 1 . . Leg 1 | . 1 . . Wheel . | . . . . Hover . | . . . . Flight . | . . . . Utility 6 | 2 2 1 1 Device 2 | 1 . . 1 Storage 2 | 1 1 . . Processor . | . . . . Hackware 1 | . 1 . . Protection 1 | . . 1 . Artifact . | . . . . Weapon 11 | 2 . 2 7 Energy Gun 1 | 1 . . . Energy Cannon 3 | . . 1 2 Ballistic Gun 4 | 1 . . 3 Ballistic Cannon . | . . . . Launcher 2 | . . 1 1 Special Weapon . | . . . . Impact Weapon . | . . . . Slashing Weapon . | . . . . Piercing Weapon . | . . . . Special Melee Weapon 1 | . . . 1 Unidentified Prototypes . | . . . . Parts Lost 4 | . 1 . 3 Power . | . . . . Propulsion 3 | . 1 . 2 Utility . | . . . . Weapon 1 | . . . 1 Highest Loss Streak 2 | . 1 . 2 To Critical Strikes . | . . . . Average Slot Usage (%) 98 | . 99 100 96 Engine 8 | . 14 11 . Core 5 | . . 2 14 Treads 25 | . 22 28 26 Leg 2 | . 5 . . Storage 14 | . 14 14 14 Hackware 8 | . 13 11 . Protection 5 | . . 2 13 Energy Gun 6 | . 14 4 . Energy Cannon 6 | . . 9 11 Ballistic Gun 10 | . 14 11 4 Launcher 2 | . . 2 7 Naked Turns . | . . . . Heaviest Build 41 | 13 27 39 41 Greatest Support 40 | 40 40 40 40 Greatest Overweight (x) 11 | . 1 . 11 Average Overweight (x) . | . . . . Largest Inventory Capacity 15 | 8 15 15 15 Average Capacity 13 | 7 12 15 15 Most Carried 15 | 2 12 15 15 Average Carried 10 | 1 7 13 13 Final Capacity 15 | 8 15 15 15 Final Carried 15 | 2 12 15 14 Class Distribution -------------------- 100% | Mutant Dominant Class ---------------- Mutant | -10/Materials Mutant | -10/Mines Mutant | -10/Exiles Resources | -11 -10 -10 -10 ----------- Run | Jun Mat Min Exi Matter Collected 693 | 305 297 81 10 Remotely . | . . . . Salvage Created 1174 | 257 411 21 485 Parts 89 | 34 34 6 15 Haulers Intercepted 1 | . 1 . . Recyclers Shooed 1 | . . 1 . Parts Field Recycled . | . . . . Retrieved Matter . | . . . . Parts Self-Destructed . | . . . . Prevented . | . . . . Kills | -11 -10 -10 -10 ------- Run | Jun Mat Min Exi Combat Hostiles Destroyed 20 | . 10 . 10 Guns 11 | . 10 . 1 Cannons 1 | . . . 1 AOE 4 | . . . 4 Classes Destroyed 11 | 3 5 1 2 Worker 3 | 2 . 1 . Builder 1 | . . 1 . Tunneler 9 | 8 . 1 . Hauler 1 | . 1 . . Recycler 2 | 1 1 . . Operator 1 | . 1 . . Watcher 2 | . 2 . . Swarmer 6 | . 6 . . Grunt 7 | . 4 . 3 Brawler 1 | . . . 1 Hunter 6 | . . . 6 Best Kill Streak 9 | 4 4 1 9 Combat Bots Only 9 | . 3 . 9 Max Kills in Single Turn 2 | 1 1 1 2 Gunslinging . | . . . . Exploded 2 | . . . 2 Melee . | . . . . Uniques/NPCs Destroyed . | . . . . Combat | -11 -10 -10 -10 -------- Run | Jun Mat Min Exi Damage Taken 1166 | . 336 . 830 Core 261 | . 48 . 213 Absorbed by Shields . | . . . . Core Remaining (%) 100 | 100 . . . Volleys Fired 113 | 35 53 3 22 Largest 2 | 2 2 2 2 Hottest 80 | 60 60 60 80 Shots Fired 212 | 70 105 6 31 Gun 204 | 70 105 6 23 Cannon 5 | . . . 5 Launcher 3 | . . . 3 Special . | . . . . Kinetic 114 | 35 53 3 23 Thermal 93 | 35 52 3 3 Explosive . | . . . . Electromagnetic 5 | . . . 5 Robot Hit Streak 8 | 8 7 3 8 Robot Miss Streak 6 | 3 6 1 3 Penetration Max . | . . . . Secondary Targets . | . . . . Shots Hit Robots 123 | 34 61 4 24 Core Hits 60 | 18 29 2 11 Critical Kills 1 | 1 . . . Critical Parts Destroyed . | . . . . Critical Strikes 1 | 1 . . . Destroy 1 | 1 . . . Melee Attacks 4 | . . . 4 Impact . | . . . . Slashing . | . . . . Piercing . | . . . . Sneak Attacks 4 | . . . 4 Combat Hostiles . | . . . . Follow-up Attacks . | . . . . Damage Inflicted 2066 | 349 602 64 1051 Guns 1132 | 349 597 35 151 Cannons 44 | . . . 44 Explosions 856 | . . . 856 Melee . | . . . . Ramming 34 | . 5 29 . Kinetic 511 | 138 209 13 151 Thermal 655 | 211 388 22 34 Explosive . | . . . . Electromagnetic 866 | . . . 866 Impact . | . . . . Slashing . | . . . . Piercing . | . . . . Highest Corruption 10 | . . . 10 Average Corruption 3 | . . . 3 Corruption Purged . | . . . . Corruption Blocked . | . . . . Effects 3 | . . . 3 Message Errors 1 | . . . 1 Parts Rejected 1 | . . . 1 Weapon Failures 1 | . . . 1 Overload Shots . | . . . . Overflow Damage 11 | . . . 11 Projectiles . | . . . . Explosions 11 | . . . 11 Melee . | . . . . Knockbacks . | . . . . Impact . | . . . . Kinetic . | . . . . Secondary . | . . . . Self-Inflicted Damage . | . . . . Shots . | . . . . Rammed 5 | . 2 3 . Targets Rammed 7 | . 2 5 . Kicked . | . . . . Crushed 2 | . . 2 . Highest Temperature 153 | 40 153 20 80 Average Temperature 28 | 21 35 13 26 Received Heat Transfer 222 | . 120 . 102 Siege Activations . | . . . . Robots Corrupted 4 | . . . 4 Combat Hostiles 4 | . . . 4 Parts Fried 4 | . . . 4 Impact Corruptions . | . . . . Robots Melted . | . . . . Combat Hostiles . | . . . . Parts Melted 1 | . 1 . . Heat Transferred 1449 | 475 850 50 74 Parts Sabotaged . | . . . . Parts Stolen . | . . . . Parts Stripped . | . . . . Power Chain Reactions . | . . . . Missiles Intercepted . | . . . . Latent Energy Used 333 | . . . 333 LE Corruption 5 | . . . 5 Alert | -11 -10 -10 -10 ------- Run | Jun Mat Min Exi Peak Influence 276 | 55 276 15 . Initial 35 | . 35 5 . Average 39 | 23 65 4 . Maximum Alert Level 1 | . 1 . . Low Security (%) 96 | 100 92 100 . Level 1 3 | . 7 . . Level 2 . | . . . . Level 3 . | . . . . Level 4 . | . . . . Level 5 . | . . . . High Security . | . . . . Max Security . | . . . . Squads Dispatched 3 | . 2 1 . Investigation 1 | . . 1 . Extermination . | . . . . Reinforcement 2 | . 2 . . Assault . | . . . . Garrison . | . . . . Intercept . | . . . . Searches Triggered . | . . . . Construction Impeded . | . . . . Haulers Reinforced . | . . . . Active Scanning Responses . | . . . . Cargo Convoy Interrupts . | . . . . Stealth | -11 -10 -10 -10 --------- Run | Jun Mat Min Exi Distress Signals 2 | . 2 . . Communications Jammed . | . . . . Distress Signals . | . . . . Times Spotted 31 | . 19 . 12 Peak Tracking Total 8 | . 4 . 8 Tactical Retreats . | . . . . Traps | -11 -10 -10 -10 ------- Run | Jun Mat Min Exi Traps Triggered . | . . . . Indirectly . | . . . . Trap Hack Attempts . | . . . . Triggered . | . . . . Disarmed . | . . . . Reprogrammed . | . . . . Reused . | . . . . Traps Extracted . | . . . . Installed 1 | . . . 1 Triggered . | . . . . Most Traps Carried 4 | . . 4 4 Machines | -11 -10 -10 -10 ---------- Run | Jun Mat Min Exi Machines Disabled 2 | . . . 2 Max in Single Turn 1 | . . . 1 Machines Repaired . | . . . . Machines Sabotaged . | . . . . Overloaded Fab Kills . | . . . . Hacking | -11 -10 -10 -10 --------- Run | Jun Mat Min Exi Machines Accessed 11 | . 9 1 1 Terminals 7 | . 7 . . Fabricators . | . . . . Repair Stations . | . . . . Recycling Units 2 | . 2 . . Scanalyzers . | . . . . Garrison Access . | . . . . Total Hacks 33 | . 31 1 1 Successful 20 | . 18 1 1 Failed 12 | . 12 . . Catastrophic . | . . . . Database Lockouts 1 | . 1 . . Manual 16 | . 15 . 1 Terminals 25 | . 25 . . Fabricators . | . . . . Repair Stations . | . . . . Recycling Units 6 | . 6 . . Scanalyzers . | . . . . Garrison Access . | . . . . Terminal Hacks 14 | . 12 1 1 Record 1 | . 1 . . Robot Analysis 2 | . 2 . . Prototype ID Bank 1 | . 1 . . Open Door 1 | . . 1 . Emergency Access Points 1 | . 1 . . Terminal Index 1 | . 1 . . Unreport Threat 1 | . 1 . . Locate Traps 3 | . 3 . . Registered Prototypes 1 | . 1 . . Zone Layout 1 | . 1 . . EX-Prototype ID Bank 1 | . . . 1 Fabricator Hacks . | . . . . Repair Station Hacks . | . . . . Recycling Unit Hacks 3 | . 3 . . Retrieve Matter 2 | . 2 . . Retrieve Components 1 | . 1 . . Scanalyzer . | . . . . Garrison Access Hacks . | . . . . Unauthorized Hacks 3 | . 3 . . Terminals 3 | . 3 . . Botnet 3 | . 3 . . Fabricators . | . . . . Repair Stations . | . . . . Recycling Units . | . . . . Scanalyzers . | . . . . Garrison Access . | . . . . Data Cores Recovered . | . . . . Used . | . . . . Hacking Detections 9 | . 9 . . Full Trace Events . | . . . . Feedback Events . | . . . . Feedback Blocked . | . . . . Robot Schematics Acquired . | . . . . Robots Built . | . . . . Authchips . | . . . . Time . | . . . . Total Robot Build Rating . | . . . . Part Schematics Acquired . | . . . . Parts Built . | . . . . Authchips . | . . . . Time . | . . . . Total Part Build Rating . | . . . . Parts Repaired . | . . . . Time . | . . . . Parts Recycled . | . . . . Recycled Matter . | . . . . Retrieved Matter 104 | . 104 . . Retrieved Components 9 | . 9 . . Parts Scanalyzed . | . . . . Part Schematics Acquired . | . . . . Parts Damaged . | . . . . Bothacking | -11 -10 -10 -10 ------------ Run | Jun Mat Min Exi Used RIF Installer . | . . . . Robots Hacked 4 | . . . 4 Non-combat 3 | . . . 3 Combat 1 | . . . 1 Robot Hacks Applied 4 | . . . 4 parse_system 4 | . . . 4 Relay Couplers Released . | . . . . Fabnet Peak Effective % . | . . . . Robots Rewired . | . . . . Allies Hacked . | . . . . Hacks Repelled . | . . . . Allies | -11 -10 -10 -10 -------- Run | Jun Mat Min Exi Total Allies . | . . . . Largest Group . | . . . . Highest-Rated Group . | . . . . Highest-Rated Ally . | . . . . Total Orders 1 | . . . 1 EXPLORE 1 | . . . 1 Ally Attacks . | . . . . Total Damage . | . . . . Kills . | . . . . Allies Corrupted . | . . . . Allies Melted . | . . . . Intel | -11 -10 -10 -10 ------- Run | Jun Mat Min Exi Robot Analysis Total 2 | . 2 . . Derelict Logs Recovered 2 | . . 2 . Drone Launches 1 | . . . 1 Drone Recoveries 1 | . . . 1 Exploration | -11 -10 -10 -10 ------------- Run | Jun Mat Min Exi Turns Passed 4553 | 315 1705 1165 1368 Spaces Moved 2390 | 133 789 706 762 Core 8 | 7 . . 1 Treads 2380 | 126 787 706 761 Legs 2 | . 2 . . Wheels . | . . . . Hover . | . . . . Flight . | . . . . Fastest Speed 50 | 50 160 160 160 Average Speed 168 | 154 184 160 160 Slowest Speed 600 | 160 240 160 600 Overloaded Moves . | . . . . Propulsion Burnouts . | . . . . Robots Hopped . | . . . . Cave-ins Triggered . | . . . . Exploration Rate (%) 67 | 6 96 99 69 Regions Visited 3 Branch Regions 2 Pre-discovered Areas . | . . . . Known Exits Taken . | . . . . Unknown Exits Taken 3 | 1 1 1 . Scrap Searched 1 | . . 1 . Spaces Dug . | . . . . Terrain Destroyed 4 | . . . 4 Melee . | . . . . Projectile . | . . . . AOE 4 | . . . 4 Terrain Rammed . | . . . . Walls Destroyed . | . . . . Machines Disabled . | . . . . Actions | -11 -10 -10 -10 --------- Run | Jun Mat Min Exi Total 2732 | 176 938 736 882 Wait 130 | . 76 3 51 Move 2387 | 132 788 705 762 Hop . | . . . . Pick Up 35 | 2 10 8 15 Fast Attach 12 | 7 3 2 . Attach 3 | . . 1 2 Detach 2 | . . 1 1 Swap 9 | . 2 1 6 Drop 29 | . 4 7 18 Fire 113 | 35 53 3 22 Melee 4 | . . . 4 Ram . | . . . . Kick . | . . . . Crush 7 | . 2 5 . Escape Stasis . | . . . . Rewire . | . . . . Trap 1 | . . . 1 Miscellaneous . | . . . . Route ------- -11/Junkyard -10/Materials (discovered 4 exits: [*Mat x3] / *Min) -10/Mines (discovered 3 exits: [*Mat x2] / *Exi) -10/Exiles (discovered 1 exit: [*Min]) History --------- Turn | Location | Event 42 | -11/Junkyard | Discovered new exit (range 15) 316 | -11/Junkyard | Entered Materials 317 | -10/Materials | Build established: Mutant 803 | -10/Materials | Discovered new exit (range 10) 926 | -10/Materials | Discovered new exit (range 11) 1145 | -10/Materials | Central database locked down 1584 | -10/Materials | Discovered new exit (range 15) 1903 | -10/Materials | Discovered new exit (range 16) 2021 | -10/Materials | Entered Mines 2023 | -10/Mines | Discovered new exit (range 8) 2509 | -10/Mines | Deemed a non-threat by the Exiles lab entrance 2509 | -10/Mines | Discovered new exit (range 5) 2857 | -10/Mines | Found a hidden stash of uninstalled traps 2948 | -10/Mines | Discovered new exit (range 15) 2984 | -10/Mines | Met a Derelict shopkeep closing up shop 3101 | -10/Mines | YI-UF0 nonchalantly dropped a Grenade Launcher on the ground 3186 | -10/Mines | Entered Exiles 3228 | -10/Exiles | Met 8R-AWN 3257 | -10/Exiles | Met EX-HEX 3263 | -10/Exiles | Warned about trapping Exiles lab 3319 | -10/Exiles | Met EX-BIN 3337 | -10/Exiles | Met EX-DEC 4094 | -10/Exiles | Aligned with FarCom system 4095 | -10/Exiles | Given EX-Vault access code 4134 | -10/Exiles | Opened EX-Vault 4144 | -10/Exiles | Found Latent Energy Streamer 4148 | -10/Exiles | Found Supersonic Drone Bay 4183 | -10/Exiles | Warned to stay clear of 0b10 Research branches 4201 | -10/Exiles | Exiles lab attacked by MAIN.C 4266 | -10/Exiles | Found Flying Fortress v7 4407 | -10/Exiles | Discovered new exit (range 11) 4479 | -10/Exiles | Core integrity fell below 50% 4512 | -10/Exiles | Core integrity fell below 20% 4541 | -10/Exiles | Destroyed 9 combat bots 4552 | -10/Exiles | System corruption reached 10% 4554 | -10/Exiles | Destroyed by P-60 Hacker with Shock Rifle Last Messages --------------- 04489_ Penetrated by Slug. 04491_ H-55 Commando system terminally corrupted. 04491_ Targeting Computer fried. 04501_ System corrupted: Lgt. Assault Rifle rejected. 04502_ Lgt. Treads destroyed. 04502_ System corrupted by crushing effect (+2). 04502_ Lgt. Treads destroyed. 04507_ Knocked back. 04508_ B-36 Bruiser destroyed. 04515_ G-34 Mercenary destroyed. 04516_ Penetrated by Slug. 04519_ Machine disabled. 04520_ P-60 Hacker resets H-55 Commando, system corruption cleaned. 04520_ G-34 Mercenary destroyed. 04520_ H-55 Commando destroyed. 04525_ HRPIW4>ODGSJJGWFCQUROFJRC40K3U%M:AYG0 04529_ Trailblazer released from Supersonic Drone Bay. 04532_ Trailblazer retrieved by Supersonic Drone Bay. 04550_ System corrupted: Lgt. Assault Rifle jammed. 04551_ Shock Bomb Launcher destroyed. Map ----- +----------------------------------------------------+ | ?????????????????????????????????????????????????? | | ?????????????????????????????????????????????????? | | ????????????????????????????????????????????????## | | ????????????????????????????????????????????????"" | | ??####??????????????????????????????????????????"" | | ?## #????????????????????????????????????????#"" | | ?# ????????????????????????????????????????#" | | ?# < ????????????????????????????????????????#" | | ?# ##??????????????????????????????????????#"" | | ?# ??????????????????????????????????????##" | | ?# #??????????????????????????????????????? ? | | ??# #????????????????????????????????????????? | | ??# ##???????????????????????????????????????? | | ??## #????????????#######????????????????????? | | ???# #######??????# "#????????????????????? | | ???# #""##?????# "#????????????????????? | | ???## #?????# "#????????????????????? | | ????##" ##???## ""#??????????########??? | | ????#"" #####" ""#??????????# """#??? | | ????#### ##" ""#??????????#"" """#??? | | ???????## #"" ###??????????#"" #??? | | ????????#"## #????????????#"" #??? | | ????????####### ##???????????#"" "#??? | | ??????????????### "#???????????# ""#??? | | ????????########" ###?????????#"" ""#??? | | ????????# """"" @ ##????????### ###??? | | ????????#! "###""=%* ######???### ###?## | | ????????#! "#?## ! " "#####X# #"###" | | ????????#! ##??# """"" | | ????????# !""""""###???#"# "" "" | | ????????##########?????#### = " " | | ??????????????????????????### %%* | | ????????????????????????????### %*pp | | ??????????????????????????????## ! ! | | ???????????????????????????????# = %=% % | | ???????????????????????????????## % | | ????????????????????????????????#" % [ * % | | ???????????????????????????????##" %= = | | ???????????????????????????????# [% " | | ???????????????????????????????# = """ | | ???????????????????????????????# % ""# | | ???????????????????????????????# ""# | | ???????????????????????????????#" %%%## | | ??????????????????????????????# =%[= | | ??????????????????????????????## = % | | ???????????????????????????????##" % | | ????????????????????????????????#"""" | | ????????????????????????????????## | | ?????????????????????????????????#" | | ?????????????????????????????????#"""" | +----------------------------------------------------+ Best States ------------- Heat Dissipation 25 Energy Generation 14 Energy Capacity 250 Matter Stores 300 Matter Capacity 300 Sight Range 16 Terrain Scan Range 16 Terrain Scan Density 10 Armor Coverage 150 Evasion (%) 40 Recoil Reduction 2 Offensive Hacking 10 Item Schematics ----------------- None Robot Schematics ------------------ None Fabricated ------------ Nothing Alien Tech Used ----------------- None Achievements -------------- None Challenges ------------ None Game ------ Seed IonicRestorationWings Manual? 0 Play Time 00:25:54 Cumulative 39.1 hours Start 2023.07.13 @ 20:20:05 End 2023.07.13 @ 20:45:56 Sessions 1 Manual Loads 0 Difficulty Rogue Special Mode None Game No. 29 Rogue 29 Adventurer 0 Explorer 0 Win Type - Total 0 Types 0/0/0/0/0/0/0/0/0 Lore% 28 Gallery% 32 Achievement% 30 Wizard Run 0 Options --------- ASCII 0 Keyboard 0 Movement Mouse Keybinds 0 Fullscreen 1 Font 18/SmallcapsGlow Map View 76x50 Tactical HUD 1 Map Filters NONE Filters NONE Steam X RUN: 96d86ad4-d88f-4fa1-bb8f-cbe4c6075815